Cogmind - Beta 16 @@@ ROGUE MODE // 2025.11.17 @ 21:23:11 Player: ClassActJerk Result: Destroyed by S-10 Pest with Light Assault Rifle Performance ------------- Evolutions (2) 1000 Regions Visited (4) 800 Robots Destroyed (49) 245 Value Destroyed (1515) 1515 Prototype IDs (2) 40 Alien Tech Used (0) 0 Bonus (0) 0 TOTAL SCORE: 3600 Bonus ------- None Cogmind --------- Core Integrity 0/550 Matter 228/300 Energy 100/100 System Corruption 4% Temperature Cool (0) Movement Core (450) Ox8 Location -8/Materials Parts ------- > --- POWER (2) -------- (None) > --- PROPULSION (3) --- (None) > --- UTILITY (3) ------ Large Storage Unit > --- WEAPON (3) ------- Light Assault Rifle Assault Cannon > --- INVENTORY (15) --- Aluminum Leg Aluminum Leg Weapon Shielding Weapon Shielding High-powered Shotgun Mining Laser Peak State ------------ > --- POWER ------------ Ion Engine Light Nuclear Core > --- PROPULSION ------- Aluminum Leg Improved Aluminum Leg Carbon-fiber Leg > --- UTILITY ---------- Large Storage Unit Medium Matter Pod Light Armor Plating > --- WEAPON ----------- High-powered Shotgun High-powered Shotgun High-powered Shotgun > --- INVENTORY -------- Improved Flight Unit Light Armor Plating Light Assault Rifle High-powered Shotgun Light Cannon Assault Cannon Mining Laser [Rating: 23] Favorites ----------- Power Light Nuclear Core Engine Light Ion Engine Power Core Light Nuclear Core Propulsion Light Treads Treads Light Treads Leg Aluminum Leg Utility Medium Matter Pod Device Experimental Sensor Array Storage Medium Matter Pod Protection Light Armor Plating Weapon Light Assault Rifle Energy Gun Small Laser Ballistic Gun Light Assault Rifle Ballistic Cannon Light Cannon Launcher Rocket Launcher Build | -11 -10 -10 -9 -8 ------- Run | Yrd Mat Min Mat Mat Slots Evolved 4 | . . . 2 2 Power 1 | . . . . 1 Propulsion 1 | . . . . 1 Utility 1 | . . . 1 . Weapon 1 | . . . 1 . Parts Attached 34 | 3 6 1 13 11 Power 7 | 1 1 . 2 3 Engine 4 | 1 . . . 3 Core 3 | . 1 . 2 . Reactor . | . . . . . Propulsion 8 | . 2 . 3 3 Treads 2 | . 2 . . . Leg 6 | . . . 3 3 Wheel . | . . . . . Hover . | . . . . . Flight . | . . . . . Utility 6 | . 3 . 2 1 Device 1 | . . . 1 . Storage 3 | . 3 . . . Processor . | . . . . . Hackware . | . . . . . Protection 2 | . . . 1 1 Artifact . | . . . . . Weapon 13 | 2 . 1 6 4 Energy Gun 2 | . . . 2 . Energy Cannon . | . . . . . Ballistic Gun 6 | 2 . . 4 . Ballistic Cannon 3 | . . . . 3 Launcher 2 | . . 1 . 1 Special Weapon . | . . . . . Impact Weapon . | . . . . . Slashing Weapon . | . . . . . Piercing Weapon . | . . . . . Special Melee Weapon . | . . . . . Unidentified Prototypes 2 | . . . 2 . Parts Lost 17 | . . . 3 14 Power 4 | . . . 1 3 Propulsion 3 | . . . 1 2 Utility 3 | . . . . 3 Weapon 7 | . . . 1 6 Highest Loss Streak 12 | . . . 1 12 To Critical Strikes 1 | . . . . 1 Average Backups 6 | 3 4 5 6 8 Power 1 | . 1 1 1 . Propulsion . | 1 . . 1 1 Utility . | . . 1 . 1 Weapon 3 | . 1 3 3 5 Tool/Special . | . . . . . Unused Backups 10 | . 1 . 3 6 Power . | . . . . . Propulsion 5 | . . . 3 2 Utility 3 | . 1 . . 2 Weapon 2 | . . . . 2 Tool/Special . | . . . . . Average Slot Usage (%) 93 | . 92 100 96 87 Engine 6 | . 12 . . 10 Core 5 | . 1 14 10 2 Treads 12 | . 26 28 5 . Leg 11 | . . . 15 23 Device 1 | . . . 3 . Storage 21 | . 21 28 22 17 Protection 4 | . . . 7 7 Energy Gun 1 | . . . 6 . Ballistic Gun 23 | . 28 23 18 24 Launcher 2 | . . 4 5 . Peak Build Rating 23 | 3 9 11 21 23 Average Rating 13 | 1 6 9 15 19 On Entrance 8 | . 3 9 11 18 Avg Prop Armor Cover (%) . | . . . . . Naked Turns . | . . . . . Heaviest Build 44 | 5 29 32 39 44 Greatest Support 43 | 3 40 40 40 43 Greatest Overweight (x) 10 | 1 1 . 1 10 Average Overweight (x) . | . . . . . Largest Inventory Capacity 15 | 5 15 15 15 15 Average Capacity 13 | 5 10 15 15 15 Most Carried 11 | 5 6 7 11 11 Average Carried 6 | 3 4 5 6 8 Final Capacity 15 | 5 15 15 15 15 Final Carried 8 | 5 5 7 8 6 Class Distribution -------------------- 47% | Mutant 20% | Tank 19% | Scavenger-Tank 9% | Skirmisher 3% | Gunner Dominant Class ---------------- Mutant | -10/Materials Mutant | -10/Mines Scavenger-Tank | -9/Materials Tank | -8/Materials Resources | -11 -10 -10 -9 -8 ----------- Run | Yrd Mat Min Mat Mat Matter Collected 1258 | 215 120 . 447 476 Remotely . | . . . . . Salvage Created 1500 | . 120 . 537 843 Parts 95 | . 7 . 40 48 Haulers Intercepted 3 | . . . 2 1 Recyclers Shooed . | . . . . . Parts Field Recycled . | . . . . . Retrieved Matter . | . . . . . Parts Self-Destructed . | . . . . . Prevented . | . . . . . Parts Restored . | . . . . . Kills | -11 -10 -10 -9 -8 ------- Run | Yrd Mat Min Mat Mat Combat Hostiles Destroyed 32 | . 3 . 12 17 Guns 23 | . 3 . 7 13 Cannons 1 | . . . . 1 AOE 8 | . . . 5 3 Classes Destroyed 11 | . 1 . 7 3 Worker 4 | . . . 1 3 Builder 7 | . . . 5 2 Tunneler 1 | . . . 1 . Hauler 3 | . . . 2 1 Recycler 1 | . . . . 1 Operator 1 | . . . 1 . Grunt 25 | . 3 . 9 13 Brawler 1 | . . . . 1 Duelist 2 | . . . 1 1 Sentry 3 | . . . 2 1 Hunter 1 | . . . . 1 Best Kill Streak 8 | . 2 . 7 8 Combat Bots Only 5 | . 2 . 3 5 Max Kills in Single Turn 3 | . 1 . 3 2 Gunslinging . | . . . . . Exploded 2 | . . . 2 2 Melee . | . . . . . Uniques/NPCs Destroyed . | . . . . . Combat | -11 -10 -10 -9 -8 -------- Run | Yrd Mat Min Mat Mat Hostile Shots Fired 276 | . 27 . 48 201 Missed 66 | . 8 . 11 47 Hits 210 | . 19 . 37 154 Melee 14 | . . . . 14 Projectile 196 | . 19 . 37 140 Critical Strikes 10 | . . . 1 9 Damage Taken 3215 | . 243 . 586 2386 Core 681 | . 71 . 56 554 Absorbed by Shields . | . . . . . Core Remaining (%) 85 | 100 . 71 86 . Volleys Fired 91 | . 19 . 33 39 Largest 3 | . 2 . 3 3 Hottest 96 | . 40 . 93 96 Shots Fired 232 | . 38 . 87 107 Gun 201 | . 38 . 70 93 Cannon 11 | . . . . 11 Launcher 20 | . . . 17 3 Special . | . . . . . Kinetic 188 | . 38 . 46 104 Thermal 24 | . . . 24 . Explosive 20 | . . . 17 3 Electromagnetic . | . . . . . Robot Hit Streak 13 | . 13 . 10 9 Robot Miss Streak 8 | . 2 . 5 8 Penetration Max . | . . . . . Secondary Targets 5 | . . . 2 3 Max Gunslinging Chain 1 | . . . 1 1 Shots Hit Robots 149 | . 31 . 52 66 Core Hits 98 | . 10 . 37 51 Critical Kills 1 | . . . 1 . Critical Parts Destroyed 2 | . 1 . . 1 Critical Strikes 3 | . 1 . 1 1 Destroy 3 | . 1 . 1 1 Melee Attacks . | . . . . . Impact . | . . . . . Slashing . | . . . . . Piercing . | . . . . . Sneak Attacks . | . . . . . Combat Hostiles . | . . . . . Follow-up Attacks . | . . . . . Damage Inflicted 3257 | . 242 . 1364 1651 Guns 1952 | . 242 . 453 1257 Cannons 109 | . . . . 109 Explosions 1196 | . . . 911 285 Melee . | . . . . . Ramming . | . . . . . Kinetic 1891 | . 242 . 283 1366 Thermal 170 | . . . 170 . Explosive 1196 | . . . 911 285 Electromagnetic . | . . . . . Impact . | . . . . . Slashing . | . . . . . Piercing . | . . . . . Highest Corruption 4 | . . . . 4 Average Corruption 4 | . . . . 4 Corruption Purged . | . . . . . Corruption Blocked . | . . . . . Effects 2 | . . . . 2 Parts Rejected 1 | . . . . 1 Data Loss (major) 1 | . . . . 1 Overload Shots . | . . . . . Overflow Damage 7 | . . . 7 . Projectiles . | . . . . . Explosions 7 | . . . 7 . Melee . | . . . . . Knockbacks . | . . . . . Impact . | . . . . . Kinetic . | . . . . . Secondary . | . . . . . Self-Inflicted Damage 178 | . . . 123 55 Shots 6 | . . . 4 2 Rammed . | . . . . . Targets Rammed . | . . . . . Kicked . | . . . . . Crushed . | . . . . . Highest Temperature 153 | . 24 . 153 150 Average Temperature 41 | . 9 . 45 43 Received Heat Transfer 1362 | . 135 . 237 990 Siege Activations . | . . . . . Martial Activations . | . . . . . Shielding Activations . | . . . . . Robots Disrupted . | . . . . . Combat Hostiles . | . . . . . Robots Corrupted . | . . . . . Combat Hostiles . | . . . . . Parts Fried . | . . . . . Impact Corruptions . | . . . . . Robots Melted . | . . . . . Combat Hostiles . | . . . . . Parts Melted . | . . . . . Heat Transferred 400 | . . . 400 . Parts Sabotaged . | . . . . . Parts Stolen . | . . . . . Parts Stripped . | . . . . . Power Chain Reactions . | . . . . . Alert | -11 -10 -10 -9 -8 ------- Run | Yrd Mat Min Mat Mat Maximum Alert Level 1 | . . . 1 1 Low Security (%) 79 | 100 100 100 40 86 Level 1 20 | . . . 59 13 Level 2 . | . . . . . Level 3 . | . . . . . Level 4 . | . . . . . Level 5 . | . . . . . High Security . | . . . . . Max Security . | . . . . . Peak Influence 353 | . 50 . 353 253 Initial 128 | . . . . 128 Average 97 | . 5 . 203 129 Influence Increases 1150 | . 80 . 543 527 Destroy 0b10 Robot/C 640 | . 60 . 240 340 Destroy 0b10 Robot/NC 85 | . . . 50 35 Destroy Leader 136 | . 20 . 64 52 Disable Machine 90 | . . . 60 30 Destroy Structure 109 | . . . 84 25 Lose Combat Pursuer 90 | . . . 45 45 Influence Decreases 905 | . 80 . 238 587 Entered New Map 177 | . . . . 177 Time Decay 558 | . 80 . 208 270 Lost Part 170 | . . . 30 140 Squads Dispatched 7 | . 1 . 1 5 Investigation . | . . . . . Extermination . | . . . . . Reinforcement 5 | . 1 . 1 3 Assault . | . . . . . Garrison 2 | . . . . 2 Intercept . | . . . . . Searches Triggered . | . . . . . Construction Impeded 1 | . . . 1 . Haulers Reinforced . | . . . . . Active Scanning Responses . | . . . . . Cargo Convoy Interrupts . | . . . . . Stealth | -11 -10 -10 -9 -8 --------- Run | Yrd Mat Min Mat Mat Distress Signals 3 | . . . 1 2 Communications Jammed . | . . . . . Distress Signals . | . . . . . Times Spotted 48 | . 5 . 18 25 Peak Tracking Total 9 | . 3 . 4 9 Tactical Retreats 4 | . . . 2 2 Traps | -11 -10 -10 -9 -8 ------- Run | Yrd Mat Min Mat Mat Traps Triggered . | . . . . . Indirectly . | . . . . . Trap Hack Attempts . | . . . . . Triggered . | . . . . . Disarmed 6 | . 6 . . . Reprogrammed . | . . . . . Reused . | . . . . . Traps Extracted . | . . . . . Installed . | . . . . . Triggered . | . . . . . Machines | -11 -10 -10 -9 -8 ---------- Run | Yrd Mat Min Mat Mat Machines Disabled 6 | . . . 4 2 Max in Single Turn 1 | . . . 1 1 Machines Repaired . | . . . . . Machines Dismantled . | . . . . . Machines Sabotaged . | . . . . . Overloaded Fab Kills . | . . . . . Hacking | -11 -10 -10 -9 -8 --------- Run | Yrd Mat Min Mat Mat Machines Accessed 3 | . 2 . . 1 Terminals 3 | . 2 . . 1 Fabricators . | . . . . . Repair Stations . | . . . . . Recycling Units . | . . . . . Scanalyzers . | . . . . . Garrison Access . | . . . . . Total Hacks 7 | . 3 . . 4 Successful 2 | . 2 . . . Failed 5 | . 1 . . 4 Catastrophic . | . . . . . Database Lockouts . | . . . . . Manual 2 | . 2 . . . Terminals 7 | . 3 . . 4 Fabricators . | . . . . . Repair Stations . | . . . . . Recycling Units . | . . . . . Scanalyzers . | . . . . . Garrison Access . | . . . . . Terminal Hacks 2 | . 2 . . . Disarm Traps 2 | . 2 . . . Fabricator Hacks . | . . . . . Repair Station Hacks . | . . . . . Recycling Unit Hacks . | . . . . . Scanalyzer . | . . . . . Garrison Access Hacks . | . . . . . Unauthorized Hacks . | . . . . . Terminals . | . . . . . Fabricators . | . . . . . Repair Stations . | . . . . . Recycling Units . | . . . . . Scanalyzers . | . . . . . Garrison Access . | . . . . . Data Cores Recovered 1 | . . . 1 . Used . | . . . . . Hacking Detections 2 | . 1 . . 1 Full Trace Events 1 | . . . . 1 Feedback Events . | . . . . . Feedback Blocked . | . . . . . Robot Schematics Acquired . | . . . . . Robots Built . | . . . . . Authchips . | . . . . . Time . | . . . . . Total Robot Build Rating . | . . . . . Part Schematics Acquired . | . . . . . Parts Built . | . . . . . Authchips . | . . . . . Time . | . . . . . Total Part Build Rating . | . . . . . Part Studies Acquired . | . . . . . Parts Repaired . | . . . . . Time . | . . . . . Parts Recycled . | . . . . . Recycled Matter . | . . . . . Retrieved Matter . | . . . . . Retrieved Components . | . . . . . Parts Scanalyzed . | . . . . . Part Schematics Acquired . | . . . . . Parts Damaged . | . . . . . Bothacking | -11 -10 -10 -9 -8 ------------ Run | Yrd Mat Min Mat Mat Used RIF Installer . | . . . . . Robots Hacked . | . . . . . Non-combat . | . . . . . Combat . | . . . . . Robot Hacks Applied . | . . . . . Relay Couplers Released . | . . . . . Fabnet Peak Effective % . | . . . . . Robots Rewired . | . . . . . Allies Hacked . | . . . . . Hacks Repelled . | . . . . . Allies | -11 -10 -10 -9 -8 -------- Run | Yrd Mat Min Mat Mat Total Allies 3 | . . 3 . . Largest Group 3 | . . 3 3 . Highest-Rated Group 40 | . . 40 40 . Highest-Rated Ally 16 | . . 16 16 . Total Orders . | . . . . . Ally Attacks 14 | . . . 14 . Total Damage 137 | . . . 137 . Kills . | . . . . . Allies Corrupted . | . . . . . Allies Melted . | . . . . . Intel | -11 -10 -10 -9 -8 ------- Run | Yrd Mat Min Mat Mat Active Infowar (turns) 162 | . . . 162 . Sensors 162 | . . . 162 . Robot Analysis Total . | . . . . . Derelict Logs Recovered 2 | . . 2 . . Drone Launches . | . . . . . Drone Recoveries . | . . . . . Exploration | -11 -10 -10 -9 -8 ------------- Run | Yrd Mat Min Mat Mat Turns Passed 1864 | 43 500 234 507 580 Spaces Moved 819 | 44 265 145 167 198 Core 58 | 44 7 . . 7 Treads 432 | . 258 145 29 . Legs 329 | . . . 138 191 Wheels . | . . . . . Hover . | . . . . . Flight . | . . . . . Fastest Speed 50 | 50 100 160 160 120 Average Speed 163 | 77 158 160 189 171 Slowest Speed 550 | 100 160 160 240 550 Overloaded Moves . | . . . . . Propulsion Burnouts . | . . . . . Robots Hopped . | . . . . . Potential Cave-ins . | . . . . . Cave-ins Triggered . | . . . . . Exploration Rate (%) 30 | 3 49 58 17 26 Regions Visited 4 Branch Regions 1 Pre-discovered Areas . | . . . . . Known Exits Taken . | . . . . . Unknown Exits Taken 4 | 1 1 1 1 . Scrap Searched . | . . . . . Spaces Dug . | . . . . . Terrain Destroyed 113 | . . . 94 19 Melee . | . . . . . Projectile . | . . . . . AOE 113 | . . . 94 19 Terrain Rammed . | . . . . . Walls Destroyed . | . . . . . Machines Disabled . | . . . . . Actions | -11 -10 -10 -9 -8 --------- Run | Yrd Mat Min Mat Mat Total 1171 | 51 315 147 299 359 Wait 171 | . 17 . 57 97 Move 815 | 43 264 144 166 198 Hop . | . . . . . Pick Up 40 | 5 6 2 17 10 Fast Attach 4 | 3 1 . . . Attach 27 | . 3 . 13 11 Detach . | . . . . . Swap 6 | . 2 1 2 1 Drop 17 | . 3 . 11 3 Fire 91 | . 19 . 33 39 Melee . | . . . . . Ram . | . . . . . Kick . | . . . . . Crush . | . . . . . Escape Stasis . | . . . . . Rewire . | . . . . . Trap . | . . . . . Miscellaneous . | . . . . . Route ------- -11/Scrapyard -10/Materials (discovered 3 exits: [*Mat] / [*Min x2]) -10/Mines -9/Materials (discovered 2 exits: *Mat / Min) -8/Materials History --------- Turn | Location | Event 2 | -11/Scrapyard | Met Revision 17 3 | -11/Scrapyard | Discovered new exit (range 15) 44 | -11/Scrapyard | Entered Materials 90 | -10/Materials | Discovered new exit (range 13) 218 | -10/Materials | Discovered new exit (range 7) 307 | -10/Materials | Build established: Mutant 509 | -10/Materials | Discovered new exit (range 15) 544 | -10/Materials | Entered Mines 549 | -10/Mines | Assisted by bots powering up and referring to "LRC-V3" 562 | -10/Mines | Met a Derelict bent on vengeance 637 | -10/Mines | Found a damaged Exp. Sensor Array with a note attached 652 | -10/Mines | Found Prototype Device 691 | -10/Mines | Learned Materials emergency access door positions 695 | -10/Mines | Received a Rocket Launcher from a helpful Derelict 766 | -10/Mines | Discovered new exit (range 8) 778 | -10/Mines | Entered Materials 778 | -9/Materials | Accompanied by 3 allies 778 | -9/Materials | Evolved 2 slots: Utility x1, Weapon x1 778 | -9/Materials | Identified Exp. Sensor Array 779 | -9/Materials | Identified exit to Mines 886 | -9/Materials | Lost 3 allies 1187 | -9/Materials | Discovered new exit (range 15) 1285 | -9/Materials | Entered another Materials area 1285 | -8/Materials | Evolved 2 slots: Power x1, Propulsion x1 1516 | -8/Materials | Build established: Tank 1750 | -8/Materials | Garrison activated, responded to threat 1815 | -8/Materials | Core integrity fell below 50% 1833 | -8/Materials | Core integrity fell below 20% 1865 | -8/Materials | Destroyed by S-10 Pest with Light Assault Rifle Last Messages --------------- 01842_ K-01 Serf collects debris. 01845_ U-05 Engineer builds a Wall. 01847_ K-01 Serf collects debris. 01849_ U-05 Engineer lays Concrete. 01849_ Acquired 36 matter. 01850_ S-10 Pest emerges from the garrison. 01850_ K-01 Serf collects debris. 01850_ U-05 Engineer builds a Wall. 01852_ Critical hit (Destroy). 01852_ Lgt. Cannon destroyed. 01852_ K-01 Serf collects debris. 01853_ U-05 Engineer builds a Door. 01853_ K-01 Serf collects debris. 01855_ K-01 Serf cleans the Fusion Modulator. 01856_ U-05 Engineer builds a Wall. 01857_ U-05 Engineer destroyed. 01858_ K-01 Serf collects debris. 01858_ K-01 Serf cleans the Fusion Modulator. 01860_ G-47 Trooper destroyed. 01861_ K-01 Serf collects debris. Map ----- +----------------------------------------------------+ | ?????????????????????????????????????????????????? | | ?????????????????????????????????????????????????? | | ?????????????????????????????????????????????????# | | ?????????????????????????????????????????????????# | | ?????????????????????????????????????????????????# | | ?????????????????????????????????????????????????# | | ?????????????????????????????????????????????????# | | ?????????????????????????????????????????????????# | | ?????????????????????????????????# ??????????????# | | ?????????????????????????????????# ????????????# | | ?????????????????????????????????# ??######### | | ?????????????????????????????????# # | | ?????????????????????????????????# + | | ?????????????????????????????????# # | | ?????????????????????????????????# ??# ######! | | ??????????????????"??????????????# ????# #????# | | ?????????????????? ?????????????# ?????# #????# | | ??????????????????? ?????????????#+#??####+###### | | ???????????????????#/????????????# #??# # | | ???????????????????# #########+### ####! # | | ???????????????????# ##= """ # | | ???????????????????# ! /% """""# | | ???????????????????? ## """""# | | ?????????????????????# *########## ##! """"# | | ?????????????????????# |#!%s=! # ## """ # | | ?????????????????????#=%/@*"" #= ## / #^ | | ?????????????????????#t!#s"G #%! ##########+# | | ?????????????????????# |=!"" # | | ?????????????????????+ [!g%=k% + | | ??????????????????? ### k!%="""# | | ?????????????????" ???# [ """# ###+########? | | ???????????????"""?????# % """# #???????????? | | ????????????????"??????## # #???????????? | | ????????????????????????# ## #???????????? | | ????????????????????????### # ## ???????????? | | ??????????????????????????? ? #??????????? | | ??????????????????????????? #??????????? | | ??????????????????????????? ? #??????????? | | ???????????????????????????###### #??????????? | | ?????????????????????????????????######??????????? | | ?????????????????????????????????????????????????? | | ?????????????????????????????????????????????????? | | ?????????????????????????????????????????????????? | | ?????????????????????????????????????????????????? | | ?????????????????????????????????????????????????? | | ?????????????????????????????????????????????????? | | ?????????????????????????????????????????????????? | | ?????????????????????????????????????????????????? | | ?????????????????????????????????????????????????? | | ?????????????????????????????????????????????????? | +----------------------------------------------------+ Best States ------------- Heat Dissipation 31 Energy Generation 19 Energy Capacity 310 Matter Stores 400 Matter Capacity 400 Sight Range 16 Robot Scan Range 20 Terrain Scan Density 10 Armor Coverage 150 Evasion (%) 55 Recoil Reduction 2 Item Schematics ----------------- None Robot Schematics ------------------ None Fabricated ------------ Nothing Repaired ---------- Nothing Studied --------- None Alien Tech Used ----------------- None Achievements -------------- None Challenges ------------ None Game ------ Seed DeuteriumLaserArticulator Manual? 0 Play Time 00:17:47 Cumulative 29.9 hours Start 2025.11.17 @ 21:07:45 End 2025.11.17 @ 21:23:11 Sessions 1 Manual Loads 0 Difficulty Rogue Special Mode None Game No. 90 Rogue 90 Adventurer 0 Explorer 0 Win Type - Total 0 Types 0/0/0/0/0/0/0/0/0/0 Lore% 7 Gallery% 23 Achievement% 17 Wizard Run 0 Options --------- Layout 1 ASCII 0 Keyboard 0 Movement Mouse Keybinds 0 Fullscreen 1 Font 24/Terminus Map View 50x35 Zoom Use 0% Tactical HUD 1 Map Filters NONE Filters NONE Steam 1 RUN: fc67164e-5145-4e98-999b-2594230fc55a